bitfinex/quotes_ETHUSD_20240925
["timestamp","ask_amount","ask_price","bid_price","bid_amount"]
[1727272545081,0.85874132,2620.3,2619.9,3.8168]
[1727272545281,0.85874132,2620.3,2620.0,3.81675]
[1727272545956,0.85874132,2620.3,2620.0,3.81671]
[1727272546274,0.85874132,2620.3,2620.0,3.81677]
[1727272546776,0.85874132,2620.3,2620.1,3.81663]
[1727272547191,0.85874132,2620.3,2620.1,7.6332]
[1727272547803,0.85874132,2620.3,2620.1,3.81657]
[1727272548457,0.85874132,2620.3,2620.0,3.89309696]
[1727272548660,0.85874132,2620.3,2619.9,3.81683]
[1727272548890,0.85874132,2620.3,2620.0,3.81671]
[1727272549089,0.85874132,2620.3,2619.9,3.81683]
[1727272549090,0.00646515,2620.1,2619.9,3.81683]
[1727272549725,0.00646515,2620.1,2620.0,3.81679]
[1727272550327,0.00646515,2620.1,2619.9,3.81683]
[1727272550528,0.00646515,2620.1,2619.7,3.81712]
[1727272551333,0.00646515,2620.1,2619.9,3.81686]
[1727272552135,0.00646515,2620.1,2619.9,7.63373]
[1727272552432,0.00646515,2620.1,2619.9,3.81686]
[1727272553129,0.00646515,2620.1,2619.7,0.74449855]
[1727272553433,0.7966,2620.0,2619.7,3.81721]
[1727272553727,0.83376717,2620.0,2619.7,3.81721]
[1727272554025,0.83376717,2620.0,2619.6,3.81732]
[1727272554226,0.83376717,2620.0,2619.7,3.81719]
[1727272554846,0.83376717,2620.0,2619.9,7.47319547]
[1727272554847,0.03716717,2620.0,2619.9,7.47319547]
[1727272555129,0.03716717,2620.0,2619.9,11.02319547]
[1727272555519,0.00646515,2620.1,2620.0,7.36679]
[1727272556338,0.00646515,2620.1,2620.0,7.44310336]
[1727272556539,0.00646515,2620.1,2620.0,8.99775076]
[1727272556840,0.00646515,2620.1,2620.0,8.9214374]
[1727272557742,0.00646515,2620.1,2620.0,8.1331374]
[1727272557912,0.00646515,2620.1,2620.0,7.36679]
[1727272559144,0.00646515,2620.1,2620.0,7.44311173]
[1727272559444,0.00646515,2620.1,2620.0,8.24501173]
[1727272559610,0.00646515,2620.1,2620.0,8.16869]
[1727272560663,0.8007,2621.4,2621.0,3.81519]
[1727272560825,0.42141907,2621.3,2621.0,6.65715547]
[1727272561151,0.42141907,2621.3,2620.9,3.81544]
[1727272561152,0.8007,2621.2,2620.9,3.81547]
[1727272561515,0.03871837,2621.1,2620.9,3.81538]
[1727272561711,0.03871837,2621.1,2621.0,3.81533]
[1727272562115,0.03871837,2621.1,2621.0,6.65729547]
[1727272563918,0.8028,2621.4,2621.2,3.81492]
[1727272564110,0.8028,2621.4,2621.2,6.65688547]
[1727272564323,0.03394505,2621.3,2621.2,6.65688547]
[1727272564857,0.03394505,2621.3,2621.2,2.84196547]
[1727272565010,0.03394505,2621.3,2621.1,3.81518]
[1727272565218,0.03394505,2621.3,2621.1,3.81508]
[1727272566122,0.03394505,2621.3,2621.0,3.81533]
[1727272566425,0.03394505,2621.3,2620.9,7.63084]
[1727272566608,0.03394505,2621.3,2621.0,3.81532]
[1727272567412,0.03394505,2621.3,2621.0,6.65719547]
[1727272567609,0.03394505,2621.3,2621.0,10.47244547]
[1727272567850,0.03394505,2621.3,2621.0,3.81523]
[1727272568053,0.8148,2621.2,2621.0,3.81523]
[1727272568254,0.8148,2621.2,2620.8,6.65752547]
[1727272568412,0.03398693,2621.1,2620.9,3.81547]
[1727272568815,0.03398693,2621.1,2620.9,3.81538]
[1727272569025,0.03398693,2621.1,2621.0,6.65729547]
[1727272569214,0.8148,2621.2,2621.0,2.84196547]
[1727272569445,0.8148,2621.2,2621.1,3.81519]
[1727272569621,0.39932977,2621.5,2621.3,3.81476]
[1727272570717,0.39932977,2621.5,2621.0,6.65718547]
[1727272570929,0.8003,2621.3,2621.1,3.81519]
[1727272571736,0.03392911,2621.2,2621.1,3.81519]
[1727272572125,1.23062977,2621.5,2621.2,3.81504]
[1727272572464,1.23062977,2621.5,2621.3,3.81482]
[1727272573666,0.39932977,2621.5,2621.4,6.65671547]
[1727272573958,0.0374215,2621.6,2621.4,6.65671547]
[1727272573959,0.0374215,2621.6,2621.5,3.8146]
[1727272574261,0.0374215,2621.6,2621.5,4.3646]
[1727272574469,0.0374215,2621.6,2621.5,4.92350052]
[1727272574765,0.0374215,2621.6,2621.5,5.68400052]
[1727272574967,0.0374215,2621.6,2621.5,8.68400052]
[1727272575184,0.0374215,2621.6,2621.5,8.60771585]
[1727272575672,0.0374215,2622.4,2622.3,6.65540547]
[1727272575828,0.07327645,2622.4,2622.3,6.65540547]
[1727272578879,0.07327645,2622.4,2622.3,6.73166911]
[1727272579044,0.0374215,2622.4,2622.3,6.73166911]
[1727272579239,0.0374215,2622.4,2622.3,7.76428496]
[1727272579470,0.0374215,2622.4,2622.3,7.68802132]
[1727272579979,0.0374215,2622.4,2622.3,8.50192132]
[1727272583049,0.0719124,2622.4,2622.3,8.50192132]
[1727272583249,0.0719124,2622.4,2622.3,6.65540547]
[1727272583446,0.0374215,2622.4,2622.3,6.65540547]
[1727272583860,0.07194741,2622.4,2622.3,6.65540547]
[1727272586553,0.07194741,2622.4,2622.3,7.20540547]
[1727272586971,0.0374215,2622.4,2622.3,7.95730547]
[1727272587774,0.0374215,2622.4,2622.3,10.95730547]
[1727272588399,0.0374215,2623.1,2623.0,7.20438547]
[1727272588679,0.0374215,2623.1,2623.0,7.28062183]
[1727272589246,0.0374215,2623.1,2623.0,7.20438547]
[1727272590463,0.0374215,2623.1,2623.0,7.28061859]
[1727272590664,0.0374215,2623.1,2623.0,7.20438547]
[1727272591202,0.0374215,2623.1,2623.0,7.28061859]
[1727272591567,0.0374215,2623.1,2623.0,7.2806184]
[1727272591764,0.0374215,2623.1,2623.0,7.28061316]
[1727272591998,0.0374215,2623.1,2623.0,7.20438547]
[1727272592182,0.0374215,2623.9,2623.0,7.20438547]
[1727272592183,0.0374215,2623.9,2623.8,4.36126]
[1727272592383,0.0374215,2623.9,2623.8,7.27943572]
[1727272593086,0.0374215,2623.9,2623.8,8.09783572]
[1727272593299,0.0374215,2623.9,2623.8,4.36126]
[1727272593807,0.0374215,2623.9,2623.7,6.65335547]
[1727272593808,0.0374215,2623.9,2623.6,3.81155]
[1727272594410,0.0374215,2623.9,2623.3,6.65389547]
[1727272594411,0.8054,2623.8,2623.3,6.65389547]
[1727272594597,0.8054,2623.8,2623.1,10.24196547]
[1727272594907,0.8054,2623.8,2623.4,3.81174]
[1727272595077,0.8054,2623.8,2623.5,2.84196547]
[1727272595899,0.8054,2623.8,2623.5,6.65364547]
[1727272596115,0.8054,2623.8,2623.6,3.81148]
[1727272596413,0.8054,2623.8,2623.5,3.81169]
[1727272596965,0.8054,2623.8,2623.5,3.81158]
[1727272597163,0.0374215,2623.9,2623.7,3.81141]
[1727272597394,0.0374215,2623.9,2623.5,3.81158]
[1727272597395,0.0374215,2623.9,2623.5,3.8116]
[1727272597600,0.0374215,2623.9,2623.5,7.6232]
[1727272597840,0.0374215,2623.9,2623.6,0.07622095]
[1727272598148,0.0374215,2623.9,2623.8,3.81126]
[1727272598304,0.0374215,2623.9,2623.7,3.8114]
[1727272598506,0.0374215,2623.9,2623.6,3.81152]
[1727272598746,0.0374215,2623.9,2623.6,7.62297]
[1727272599053,0.0374215,2623.9,2623.8,3.81126]
[1727272599352,0.0374215,2623.9,2623.6,3.81145]
[1727272599353,0.0374215,2623.9,2623.6,7.62286]
[1727272599652,0.0374215,2623.9,2623.4,3.81178]
[1727272599811,4.31560065,2623.9,2623.4,7.62355]
[1727272600005,4.31560065,2623.9,2623.4,3.81177]
[1727272600545,4.31560065,2623.9,2623.2,4.57913]
[1727272600546,3.81129,2623.8,2623.3,3.81198]
[1727272600759,4.70603906,2623.8,2623.3,3.81198]
[1727272601106,4.70603906,2623.8,2623.2,3.81203]
[1727272601334,4.70603906,2623.8,2623.3,3.81199]
[1727272601540,0.7976,2623.7,2623.1,3.81228]
[1727272601850,3.81164,2623.6,2623.1,3.81228]
[1727272602033,3.81164,2623.6,2623.0,6.81242]
[1727272602233,0.7976,2623.7,2623.0,3.0]
[1727272602417,0.7976,2623.7,2623.2,3.81201]
[1727272602622,4.60906,2623.7,2623.2,3.81201]
[1727272602934,1.64338315,2623.7,2623.1,3.81218]
[1727272603242,4.60908,2623.7,2623.2,3.81205]
[1727272603751,0.7976,2623.7,2623.2,3.81205]
[1727272604056,0.7976,2623.7,2623.4,3.81182]
[1727272604206,0.7976,2623.7,2623.5,3.81163]
[1727272604413,0.7976,2623.7,2623.4,7.62359]
[1727272604604,0.7976,2623.7,2623.4,3.81177]
[1727272604840,0.7976,2623.7,2623.6,3.81155]
[1727272605041,0.0374215,2623.9,2623.6,3.81155]
[1727272606045,0.0374215,2623.9,2623.7,3.81139]
[1727272606413,0.0374215,2623.9,2623.6,3.81145]
[1727272606616,0.0374215,2623.9,2623.5,3.81167]
[1727272606929,0.0374215,2623.9,2623.3,3.81189]
[1727272606930,0.8262,2623.7,2623.3,3.81189]
[1727272607517,0.8262,2623.7,2623.4,3.81183]
[1727272607725,4.63761,2623.7,2623.2,3.81205]
[1727272608219,3.81163,2623.6,2623.2,3.81212]
[1727272608526,1.71473289,2623.7,2623.2,3.81212]
[1727272608728,0.8262,2623.7,2623.4,3.81182]
[1727272609752,0.8262,2623.7,2623.3,3.81198]
[1727272609935,3.81165,2623.6,2623.1,3.81216]
[1727272610256,0.8243,2623.5,2623.1,3.81216]
[1727272610917,4.63602,2623.5,2623.1,3.81216]
[1727272612365,0.8243,2623.5,2623.1,3.81216]
[1727272612524,0.8243,2623.5,2623.2,3.81204]
[1727272612723,0.8243,2623.5,2623.3,3.81191]
[1727272612922,0.8243,2623.5,2623.4,3.81184]
[1727272613121,4.24759892,2623.9,2623.4,3.81184]
[1727272613122,0.7515,2623.8,2623.4,3.81184]
[1727272613962,0.7515,2623.8,2623.6,3.81153]
[1727272614171,0.7515,2623.8,2623.5,3.81167]
[1727272614969,0.7515,2623.8,2623.6,3.81154]
[1727272615960,0.7515,2623.8,2623.6,7.62299]
[1727272616484,0.7515,2623.8,2623.6,7.62291]
[1727272616627,0.7515,2623.8,2623.7,3.81141]
[1727272616825,0.43638892,2623.9,2623.7,3.81141]
[1727272617057,0.43638892,2623.9,2623.8,3.81126]
[1727272617683,0.43638892,2623.9,2623.8,5.27476565]
[1727272618193,0.0374215,2623.9,2623.8,5.27476565]
[1727272618676,0.0374215,2623.9,2623.8,8.1069037]
[1727272618852,0.0374215,2623.9,2623.8,8.02934595]
[1727272623324,0.0374215,2623.9,2623.8,7.47934595]
[1727272623522,0.0374215,2623.9,2623.8,6.64205895]
[1727272625782,0.0374215,2623.9,2623.8,7.19205895]
[1727272626881,0.0374215,2623.9,2623.7,3.81134]
[1727272627286,0.0374215,2623.9,2623.6,2.83213805]
[1727272627538,0.0374215,2623.9,2623.8,6.64339805]
[1727272631025,0.0374215,2623.9,2623.8,2.83213805]
[1727272631350,0.0374215,2623.9,2623.7,3.81141]
[1727272631593,0.7953215,2623.9,2623.7,3.81141]
[1727272633364,0.0374215,2623.9,2623.7,3.81131]
[1727272634549,0.0374215,2623.9,2623.8,11.06331672]
[1727272634734,0.0374215,2623.9,2623.8,10.98709805]
[1727272636456,0.0374215,2623.9,2623.8,11.02159805]
[1727272636802,0.0374215,2623.9,2623.8,11.92129258]
[1727272637089,0.0374215,2623.9,2623.8,11.02159805]
[1727272637394,0.0374215,2623.9,2623.8,11.81162165]
[1727272639951,0.0374215,2623.9,2623.7,3.81131]
[1727272640294,0.0374215,2623.9,2623.5,3.81158]
[1727272640584,0.0374215,2623.9,2623.1,7.4]
[1727272640585,0.8003,2623.8,2623.3,3.81192]
[1727272640884,0.46488815,2623.7,2623.4,3.81183]
[1727272641457,0.46488815,2623.7,2623.4,7.62359]
[1727272641699,0.8003,2623.8,2623.7,3.81141]
[1727272641882,0.0374215,2623.9,2623.8,3.81126]
[1727272642187,0.0374215,2623.9,2623.8,7.19339805]
[1727272642392,0.0374215,2623.9,2623.8,7.26961096]
[1727272642591,0.0374215,2623.9,2623.8,7.19339805]
[1727272642932,0.0374215,2623.9,2623.8,8.29387885]
[1727272643580,0.0374215,2623.9,2623.8,9.09337885]
[1727272648343,0.0374215,2623.9,2623.8,12.09337885]
[1727272649906,0.0374215,2623.9,2623.8,12.99280133]
[1727272650548,0.0374215,2623.9,2623.8,14.34173074]
[1727272651043,0.0374215,2624.7,2624.6,4.3601]
[1727272651244,0.0374215,2624.7,2624.6,7.19223805]
[1727272654753,0.0374215,2624.7,2624.6,4.3601]
[1727272655565,0.0374215,2624.7,2624.6,7.19223805]
[1727272656452,0.0374215,2624.7,2624.6,7.26842564]
[1727272656653,0.0374215,2624.7,2624.6,8.29271885]
[1727272658255,0.0374215,2624.7,2624.3,3.81046]
[1727272658468,0.807,2624.6,2624.5,3.81024]
[1727272660120,0.807,2624.6,2624.4,2.83213805]
[1727272660355,0.807,2624.6,2624.4,6.64249805]
[1727272660856,0.807,2624.6,2624.4,3.81036]
[1727272661433,0.807,2624.6,2624.3,3.81053]
[1727272661654,3.81039,2624.4,2623.9,3.81103]
[1727272662056,0.8103,2624.2,2623.7,3.8113]
[1727272662261,3.81084,2624.1,2623.7,3.8113]
[1727272663083,4.62105,2624.2,2623.7,3.8113]
[1727272663255,0.8013,2624.0,2623.3,4.59649]
[1727272663460,0.8013,2624.0,2623.4,3.81184]
[1727272663652,0.8013,2624.0,2623.4,6.64397805]
[1727272663844,4.61234,2624.0,2623.4,10.45581805]
[1727272664051,4.61234,2624.0,2623.5,3.81167]
[1727272664246,5.454651,2624.0,2623.4,3.81184]
[1727272664488,4.61234,2624.0,2623.4,7.62358]
[1727272664693,4.61234,2624.0,2623.4,3.81174]
[1727272664985,4.60673,2623.8,2623.2,10.45621805]
[1727272665185,0.7954,2623.8,2623.3,3.8119]
[1727272665868,0.7954,2623.8,2623.2,6.64417805]
[1727272666073,0.7943,2623.6,2623.2,6.64417805]
[1727272666648,0.7943,2623.6,2623.2,10.45623805]
[1727272667076,0.7943,2623.6,2623.4,3.81177]
[1727272667289,0.7943,2623.6,2623.4,6.64390805]
[1727272667982,0.7943,2623.6,2623.4,10.45567805]
[1727272668180,0.7943,2623.6,2623.4,6.64390805]
[1727272668588,0.7943,2623.6,2623.5,3.8117]
[1727272668778,0.39893796,2623.8,2623.4,6.64390805]
[1727272668965,0.7767,2623.9,2623.4,6.64390805]
[1727272669149,5.046625,2623.9,2623.4,3.81177]
[1727272669950,3.81134,2623.8,2623.3,3.81196]
[1727272670150,5.046625,2623.9,2623.4,3.81182]
[1727272670350,5.046625,2623.9,2623.4,10.53194785]
[1727272670585,5.046625,2623.9,2623.5,3.81169]
[1727272670970,1.235475,2623.9,2623.5,3.81161]
[1727272671188,4.5879,2623.9,2623.4,6.64397805]
[1727272671390,3.81131,2623.8,2623.3,3.81198]
[1727272671687,4.5879,2623.9,2623.4,3.81182]
[1727272671866,0.7767,2623.9,2623.4,6.64390805]
[1727272672066,0.7767,2623.9,2623.6,3.81153]
[1727272672272,0.7767,2623.9,2623.6,3.8115]
[1727272672587,0.7767,2623.9,2623.6,3.81154]
[1727272673092,4.58792,2623.9,2623.4,7.31590174]
[1727272673257,4.58792,2623.9,2623.4,3.81175]
[1727272673801,0.7767,2623.9,2623.3,3.8119]
[1727272673955,0.7767,2623.9,2623.5,3.81168]
[1727272674391,4.58789,2623.9,2623.4,4.3618]
[1727272675187,0.7767,2623.9,2623.5,3.81169]
[1727272675502,3.81129,2623.8,2623.4,0.55]
[1727272675678,0.7767,2623.9,2623.4,4.36175]
[1727272675994,4.58789,2623.9,2623.4,4.36175]
[1727272676305,0.7767,2623.9,2623.5,3.81168]
[1727272676597,4.58787,2623.9,2623.4,0.55]
[1727272676770,4.58787,2623.9,2623.4,4.36177]
[1727272677091,4.58787,2623.9,2623.5,3.81168]
[1727272677592,4.58787,2623.9,2623.4,5.15175459]
[1727272677911,4.58787,2623.9,2623.4,1.33993459]
[1727272678081,4.58787,2623.9,2623.5,3.81167]
[1727272678804,3.81128,2623.8,2623.4,5.15177459]
[1727272679297,0.7767,2623.9,2623.5,3.81162]
[1727272679456,0.7767,2623.9,2623.6,3.81155]
[1727272679899,0.7767,2623.9,2623.6,6.71991392]
[1727272680059,0.7767,2623.9,2623.6,6.64368805]
[1727272680259,0.7767,2623.9,2623.6,3.81155]
[1727272681160,0.7767,2623.9,2623.6,3.81147]
[1727272681389,0.7767,2623.9,2623.7,0.45513338]
[1727272681572,0.7767,2623.9,2623.8,3.81126]
[1727272681779,0.7646,2624.3,2623.9,3.81106]
[1727272681961,0.7646,2624.3,2624.0,3.81094]
[1727272682381,1.16347652,2624.3,2624.0,3.81094]
[1727272682787,1.16347652,2624.3,2623.8,10.45455805]
[1727272682994,1.16347652,2624.3,2624.0,3.81097]
[1727272683564,1.16347652,2624.3,2624.0,7.62194]
[1727272683759,1.16347652,2624.3,2624.0,3.81089]
[1727272683966,0.39887652,2624.3,2624.2,3.81068]
[1727272684211,0.8023,2624.5,2624.0,10.45392805]
[1727272684420,0.8023,2624.5,2624.1,3.81081]
[1727272684718,1.20116175,2624.5,2624.2,3.81067]
[1727272686023,1.20116175,2624.5,2624.3,3.88665522]
[1727272686313,0.39886175,2624.5,2624.4,3.81039]
[1727272687437,0.39886175,2624.5,2624.3,3.81052]
[1727272687587,0.39886175,2624.5,2624.2,0.55]
[1727272687588,0.7947,2624.4,2624.1,3.81072]
[1727272687787,0.7947,2624.4,2623.9,3.81102]
[1727272687788,0.7947,2624.4,2624.2,3.81068]
[1727272688132,0.7947,2624.4,2624.0,4.36088]
[1727272688281,3.81076,2624.2,2623.7,3.81132]
[1727272688488,3.81055,2624.3,2623.8,3.81126]
[1727272688801,8.41556,2624.4,2623.9,3.81112]
[1727272689111,0.7947,2624.4,2624.1,3.81082]
[1727272690522,0.7947,2624.4,2624.2,3.81067]
[1727272690694,0.7947,2624.4,2624.1,7.62156]
[1727272690908,0.7947,2624.4,2624.1,3.81074]
[1727272695519,0.7947,2624.4,2624.1,7.6215]
[1727272695737,0.7947,2624.4,2624.1,3.81074]
[1727272696098,0.7947,2624.4,2624.2,3.81065]
[1727272696302,0.7947,2624.4,2624.1,3.81082]
[1727272696596,0.7947,2624.4,2624.1,7.62164]
[1727272696801,0.7947,2624.4,2624.1,7.62158]
[1727272696998,0.7947,2624.4,2624.1,3.81076]
[1727272697217,0.7947,2624.4,2624.0,3.81096]
[1727272697949,0.7947,2624.4,2623.9,3.811]
[1727272698142,0.7947,2624.4,2624.0,3.81088]
[1727272698143,5.065591,2624.4,2624.0,3.81088]
[1727272699045,1.255201,2624.4,2623.9,3.81111]
[1727272699562,5.065661,2624.4,2623.9,3.81103]
[1727272701470,5.065661,2624.4,2624.0,3.81095]
[1727272701633,0.7947,2624.4,2624.0,3.81095]
[1727272702765,4.60513,2624.4,2624.0,3.81095]
[1727272703565,5.00399386,2624.4,2624.0,3.81095]
[1727272708066,3.81055,2624.3,2623.9,3.8111]
[1727272708270,5.00396386,2624.4,2623.9,3.8111]
[1727272709442,5.00396386,2624.4,2624.0,3.81096]
[1727272711278,5.00396386,2624.4,2623.9,3.81105]
[1727272711428,5.00396386,2624.4,2623.3,0.80015019]
[1727272711429,0.50039639,2624.4,2623.3,0.80015019]
[1727272711785,5.84289681,2624.7,2623.0,1.60030038]
[1727272711786,3.81194,2623.4,2623.0,0.80015019]
[1727272711935,3.81195,2623.4,2622.9,0.8288]
[1727272712133,4.5827,2623.3,2622.9,0.8288]
[1727272712450,3.81228,2623.1,2622.7,0.8288]
[1727272712777,3.81213,2623.2,2622.7,0.8288]
[1727272712958,4.5827,2623.3,2622.7,0.8288]
[1727272713267,4.5827,2623.3,2622.8,3.81262]
[1727272713468,0.7707,2623.3,2622.9,3.81255]
[1727272714032,4.5827,2623.3,2622.8,4.36269]
[1727272714432,4.5827,2623.3,2622.8,0.55]
[1727272714634,3.81215,2623.2,2622.8,0.55]
[1727272715343,3.81237,2623.1,2622.6,3.81291]
[1727272715537,4.63637,2623.1,2622.2,4.59304]
[1727272715849,3.81268,2622.9,2622.3,3.81337]
[1727272716044,0.824,2623.1,2622.5,2.83213805]
[1727272716279,4.63636,2623.1,2622.6,3.81298]
[1727272716639,4.63636,2623.1,2622.6,7.62589]
[1727272716839,4.63636,2623.1,2622.6,3.81291]
[1727272717461,4.63636,2623.1,2622.7,0.55]
[1727272719238,3.81243,2623.0,2622.7,0.55]
[1727272719439,3.81243,2623.0,2622.4,3.8132]
[1727272719638,3.81264,2622.9,2622.5,0.55]
[1727272721250,3.81243,2623.0,2622.5,4.36314]
[1727272722162,3.81243,2623.0,2622.5,5.46398781]
[1727272722363,7.625,2623.0,2622.5,4.36314]
[1727272724087,3.81243,2623.0,2622.5,4.36314]
[1727272724298,7.62494,2623.0,2622.5,4.36314]
[1727272724455,3.81243,2623.0,2622.5,4.36314]
[1727272724655,3.81243,2623.0,2622.5,8.1762]
[1727272725379,0.824,2623.1,2622.7,3.81285]
[1727272726981,0.39901862,2623.0,2622.7,3.81285]
[1727272727491,0.39901862,2623.0,2622.7,0.55]
[1727272729787,0.39901862,2623.0,2622.5,0.55]
[1727272729788,0.7914,2622.7,2622.5,0.55]
[1727272730085,0.7914,2622.7,2622.2,4.58009]
[1727272730277,4.60427,2622.7,2622.2,5.338099]
[1727272730493,0.7914,2622.7,2622.3,3.81332]
[1727272730806,0.7914,2622.9,2622.5,3.81306]
[1727272731012,4.60407,2622.9,2622.4,3.81326]
[1727272731354,4.60407,2622.9,2622.5,0.55]
[1727272732777,3.81278,2622.8,2622.4,3.81326]
[1727272735159,3.81278,2622.8,2622.3,4.36342]
[1727272736185,3.86539963,2622.7,2622.3,0.55]
[1727272736384,3.81287,2622.7,2622.3,0.55]
[1727272736694,3.81287,2622.7,2622.3,4.36343]
[1727272737484,5.10436886,2622.9,2622.3,4.36343]
[1727272737688,5.10436886,2622.9,2622.4,3.81322]
[1727272737689,3.81273,2622.8,2622.4,3.81322]
[1727272738188,0.7914,2622.9,2622.4,3.81322]
[1727272738189,4.60398,2622.9,2622.5,3.8131]
[1727272738501,4.60398,2622.9,2622.4,3.81322]
[1727272740069,4.60398,2622.9,2622.4,3.8132]
[1727272741465,4.60405,2622.9,2622.4,3.8132]
[1727272742775,0.7914,2622.9,2622.4,3.8132]
[1727272743117,0.39901862,2623.0,2622.9,4.36257]
[1727272743411,0.7688,2623.3,2622.9,4.36257]
[1727272743709,0.7688,2623.3,2623.0,3.81242]
[1727272744209,0.7688,2623.3,2622.9,5.13827]
[1727272744365,0.7688,2623.3,2623.1,3.81227]
[1727272744567,0.7688,2623.3,2623.0,4.36234]
[1727272744768,0.7688,2623.3,2623.0,8.17468]
[1727272744991,0.7688,2623.3,2623.1,3.81226]
[1727272745676,0.7688,2623.3,2623.0,0.55]
[1727272746288,0.7688,2623.3,2623.0,4.36241]
[1727272746885,0.7688,2623.3,2623.0,4.36235]
[1727272747097,0.7688,2623.3,2623.1,4.326075]
[1727272747572,0.7688,2623.3,2623.1,0.513815]
[1727272747781,0.7688,2623.3,2623.0,8.17469]
[1727272748031,0.7688,2623.3,2623.1,3.81219]
[1727272748198,0.8207,2623.6,2623.1,3.81219]
[1727272748502,4.63226,2623.6,2623.1,3.81219]
[1727272748672,4.63226,2623.6,2623.2,3.81213]
[1727272749002,4.63226,2623.6,2623.1,3.81227]
[1727272749590,0.8207,2623.6,2623.4,3.81177]
[1727272749902,0.8207,2623.6,2623.2,4.36213]
[1727272751110,0.8207,2623.6,2623.3,3.81187]
[1727272752108,0.8207,2623.6,2623.2,0.55]
[1727272752272,0.8207,2623.6,2623.3,3.81198]
[1727272752466,0.8207,2623.6,2623.2,4.36212]
[1727272752707,3.8117,2623.5,2623.1,3.81215]
[1727272752868,1.283901,2623.6,2623.1,3.81215]
[1727272752869,0.8207,2623.6,2623.1,3.81215]
[1727272753068,4.63227,2623.6,2623.1,3.81215]
[1727272753288,0.8207,2623.6,2622.9,3.60793805]
[1727272753508,0.8207,2623.6,2623.3,3.81197]
[1727272753704,0.8207,2623.6,2623.2,3.81212]
[1727272753903,4.63227,2623.6,2623.2,3.81212]
[1727272754603,0.8207,2623.6,2623.2,3.81212]
[1727272755670,0.8207,2623.6,2623.2,7.62419]
[1727272755876,4.63228,2623.6,2623.2,3.81207]
[1727272756615,3.81178,2623.5,2623.1,0.55]
[1727272756849,4.63228,2623.6,2623.0,3.81232]
[1727272756973,3.81215,2623.2,2622.8,3.81261]
[1727272757171,3.81215,2623.2,2621.9,5.41418038]
[1727272757172,0.763,2623.2,2622.4,0.8217]
[1727272757373,3.81279,2622.8,2622.3,3.81332]
[1727272757610,0.763,2622.7,2622.3,7.62669]
[1727272757816,0.763,2622.7,2622.3,3.81332]
[1727272758174,0.763,2622.7,2622.3,7.6267]
[1727272758410,4.57587,2622.7,2622.2,4.63529]
[1727272758569,0.457587,2622.6,2622.2,3.81359]
[1727272759071,3.86569963,2622.5,2621.9,3.81392]
[1727272759317,4.62889963,2622.4,2621.9,3.81392]
[1727272759482,4.57637,2622.4,2621.9,3.81392]
[1727272759677,0.05252963,2622.3,2621.9,3.81392]
[1727272759883,3.86605963,2622.3,2621.7,3.81422]
[1727272760149,2.83213805,2622.6,2621.6,0.0374215]
[1727272760150,0.8288,2622.2,2621.6,0.0374215]
[1727272760282,3.81288,2622.7,2621.6,0.0374215]
[1727272760283,4.64276,2622.0,2621.6,0.0374215]
[1727272760485,0.464276,2621.9,2621.6,0.0374215]
[1727272760681,0.8288,2622.0,2621.6,0.0374215]
[1727272760682,0.8288,2622.0,2621.7,3.81427]
[1727272761791,4.62556,2622.3,2621.7,3.81423]
[1727272762225,4.62556,2622.3,2621.7,3.81422]
[1727272762528,4.62556,2622.3,2621.7,7.62845]
[1727272762823,3.81361,2622.2,2621.7,3.81422]
[1727272762981,3.81362,2622.2,2621.7,3.81422]
[1727272763922,5.66951116,2622.3,2621.7,3.81422]
[1727272764121,9.48307116,2622.3,2621.7,3.81422]
[1727272764325,5.66951116,2622.3,2621.7,7.62846]
[1727272764696,5.66951116,2622.3,2621.8,3.81409]
[1727272765385,0.39912379,2622.2,2621.9,3.81396]
[1727272765623,0.39912379,2622.2,2622.0,3.81385]
[1727272765937,0.39912379,2622.2,2622.1,6.64586805]
[1727272766225,0.39912379,2622.2,2622.1,7.19586805]
[1727272766587,0.8132,2622.7,2622.3,3.81338]
[1727272766788,0.39907418,2622.5,2622.3,3.81338]
[1727272767105,0.39907418,2622.5,2622.3,3.81336]
[1727272768033,0.39907418,2622.5,2622.3,3.81335]
[1727272769100,0.39907418,2622.5,2622.4,3.8133]
[1727272769295,0.39907418,2622.5,2622.4,4.575965]
[1727272772590,0.39907418,2622.5,2622.4,5.125965]
[1727272772807,0.39907418,2622.5,2622.4,5.948065]
[1727272773228,0.7552,2623.0,2622.7,3.81274]
[1727272773524,0.39904678,2622.9,2622.7,3.81283]
[1727272774614,0.39904678,2622.9,2622.6,3.81291]
[1727272777698,0.7552,2623.0,2622.7,3.81286]
[1727272777901,0.7552,2623.0,2622.8,3.81269]
[1727272778159,0.7795,2623.4,2622.8,7.42374805]
[1727272778457,3.812,2623.3,2622.8,3.81258]
[1727272778612,3.812,2623.3,2622.9,3.81256]
[1727272779443,6.19898806,2623.4,2622.9,3.81256]
[1727272779970,6.19898806,2623.4,2622.8,3.81266]
[1727272780119,6.19900806,2623.4,2622.9,3.81255]
[1727272780315,4.5914,2623.4,2622.8,3.81262]
[1727272780636,0.7795,2623.4,2623.0,3.81234]
[1727272780840,4.59138,2623.4,2622.9,3.81256]
[1727272781319,5.47160669,2623.4,2622.9,3.81256]
[1727272782121,3.812,2623.3,2622.8,3.81261]
[1727272782826,3.812,2623.3,2622.7,0.55]
[1727272783055,3.812,2623.3,2622.9,3.81255]
[1727272783351,4.78026136,2623.3,2622.9,3.81255]
[1727272786255,0.96826136,2623.3,2622.9,3.81255]
[1727272786556,4.59135,2623.4,2622.9,3.81255]
[1727272787146,0.7795,2623.4,2623.0,3.8124]
[1727272787369,0.7795,2623.4,2622.9,3.81255]
[1727272787657,4.59135,2623.4,2622.9,3.81248]
[1727272787842,0.7795,2623.4,2623.1,3.8122]
[1727272788029,0.39905692,2623.5,2623.1,0.8216]
[1727272788231,0.39905692,2623.5,2623.1,3.81224]
[1727272789334,0.39905692,2623.5,2623.0,3.81229]
[1727272789335,4.21077692,2623.5,2623.0,3.81229]